bitfinex/quotes_ETHUSD_20251017
["timestamp","ask_amount","ask_price","bid_price","bid_amount"]
[1760668985935,2.582,3932.3,3932.2,3.17670564]
[1760668986139,0.1264,3932.5,3932.2,1.1066]
[1760668986435,2.582,3932.3,3932.2,3.64970564]
[1760668987041,2.582,3932.3,3932.2,3.17670564]
[1760668987709,2.582,3932.3,3932.2,0.6336]
[1760668987923,2.582,3932.3,3932.2,3.17670564]
[1760668988538,0.1264,3932.7,3932.3,0.6336]
[1760668988739,2.581,3932.6,3932.3,0.6336]
[1760668989304,0.1001,3932.5,3932.2,0.6336]
[1760668989827,0.2265,3932.5,3932.0,0.6336]
[1760668990024,5.41595307,3932.6,3931.7,2.54339646]
[1760668990025,0.1001,3932.4,3931.7,2.54339646]
[1760668990203,0.1979,3931.8,3931.1,2.54377706]
[1760668990402,2.7074,3931.7,3931.0,0.8269]
[1760668990602,2.7074,3931.7,3931.1,0.6336]
[1760668990802,2.6831,3931.7,3930.7,0.473]
[1760668991045,0.1264,3931.4,3930.9,2.54392012]
[1760668991249,0.1264,3931.4,3930.8,0.6336]
[1760668991430,2.64578893,3931.3,3930.7,0.1272]
[1760668991734,0.1264,3931.1,3930.4,1.8552]
[1760668991935,2.581,3931.0,3930.7,2.54407611]
[1760668992104,2.581,3931.0,3930.4,0.1272]
[1760668992308,2.581,3931.0,3930.7,2.54404788]
[1760668992510,2.581,3931.0,3930.8,0.473]
[1760668992930,2.582,3930.9,3930.5,3.65076475]
[1760668993245,2.582,3930.9,3930.6,1.1066]
[1760668993445,2.582,3930.9,3930.8,0.6336]
[1760668993643,2.582,3930.9,3930.5,0.6336]
[1760668994046,0.1264,3931.1,3930.5,0.6336]
[1760668994047,2.582,3930.8,3930.5,0.6336]
[1760668994549,2.582,3930.8,3930.5,3.17780211]
[1760668995128,2.582,3930.8,3930.7,0.6336]
[1760668996016,2.582,3930.8,3930.1,0.002]
[1760668996017,2.6851,3930.8,3930.1,0.002]
[1760668996216,2.8123,3930.8,3930.3,0.6336]
[1760668996429,2.7092,3930.8,3930.5,0.6336]
[1760668996915,2.7092,3930.8,3930.5,2.54419453]
[1760668997458,2.7092,3930.8,3930.3,0.6336]
[1760668997647,2.7092,3930.8,3930.4,2.54426012]
[1760668999420,0.1272,3930.8,3930.6,2.54408708]
[1760668999735,2.581,3930.7,3930.6,0.6336]
[1760668999941,2.68,3930.7,3930.2,0.6336]
[1760669000140,2.581,3930.7,3930.2,0.6336]
[1760669000338,0.1272,3930.5,3930.3,0.473]
[1760669000538,0.1272,3930.8,3930.7,2.54407401]
[1760669000738,2.7082,3930.8,3930.7,3.01707401]
[1760669001135,0.1272,3930.8,3930.7,3.65067401]
[1760669001345,0.1264,3931.1,3930.8,3.1775896]
[1760669001539,2.581,3931.0,3930.8,3.1775896]
[1760669001743,0.39888858,3931.3,3931.2,3.17735254]
[1760669002064,0.1264,3931.5,3931.3,0.6336]
[1760669002264,0.1264,3931.5,3931.4,2.54362313]
[1760669002567,2.7074,3931.5,3931.3,2.5436806]
[1760669002737,2.7074,3931.5,3931.2,0.6336]
[1760669002944,2.8075,3931.5,3931.0,0.6336]
[1760669003497,2.8075,3931.5,3931.3,0.6336]
[1760669003498,2.7074,3931.5,3931.3,0.6336]
[1760669003676,2.7074,3931.5,3931.3,3.17728409]
[1760669003835,0.1264,3931.5,3931.4,2.54362313]
[1760669004035,2.7074,3931.5,3931.3,2.54368004]
[1760669004566,2.7074,3931.5,3931.0,0.6336]
[1760669004772,3.20630727,3931.5,3931.0,0.6336]
[1760669005071,0.1001,3931.4,3931.0,0.6336]
[1760669005271,2.6811,3931.3,3931.0,0.6336]
[1760669005467,2.6811,3931.3,3930.5,0.6336]
[1760669005631,2.8075,3931.3,3930.8,0.6336]
[1760669005832,2.8075,3931.3,3930.8,3.17760084]
[1760669006036,2.8075,3931.3,3930.8,0.6336]
[1760669006232,2.7074,3931.3,3931.0,0.6336]
[1760669006776,2.7074,3931.3,3931.1,2.54375782]
[1760669007071,2.7074,3931.3,3931.2,3.17735254]
[1760669007072,0.1264,3931.3,3931.2,3.17735254]
[1760669007367,2.7064,3931.3,3931.2,0.6336]
[1760669007584,0.1264,3931.3,3931.2,0.6336]
[1760669007743,2.7074,3931.3,3931.2,0.6336]
[1760669008170,0.297,3931.9,3931.3,3.17722683]
[1760669008351,0.1264,3931.5,3931.3,3.17722683]
[1760669009136,0.1264,3931.5,3930.9,0.1264]
[1760669009337,0.1264,3931.5,3931.0,0.6336]
[1760669009338,0.1001,3931.5,3931.0,0.6336]
[1760669009544,0.1264,3931.3,3931.0,0.6336]
[1760669009738,2.58,3931.2,3930.9,3.17753431]
[1760669010174,2.58,3931.2,3930.8,0.6336]
[1760669010363,2.58,3931.2,3930.8,3.17759427]
[1760669010682,2.97884782,3931.2,3931.1,3.17741725]
[1760669011241,2.97884782,3931.2,3931.1,3.64901725]
[1760669011484,2.97884782,3931.2,3931.1,3.88291725]
[1760669012074,2.97984782,3931.2,3931.1,3.41131725]
[1760669012281,2.97984782,3931.2,3931.1,3.17741725]
[1760669012486,2.97984782,3931.2,3931.1,0.6336]
[1760669012877,3.07994782,3931.2,3930.7,3.17762286]
[1760669013245,3.07994782,3931.2,3930.7,0.6336]
[1760669013482,2.6811,3931.2,3930.7,0.6336]
[1760669013688,2.6811,3931.2,3930.8,2.54400441]
[1760669013985,2.581,3931.2,3931.0,0.6336]
[1760669014158,2.581,3931.2,3931.0,3.17747047]
[1760669014548,2.581,3931.2,3931.1,2.54381725]
[1760669014973,2.581,3931.2,3931.0,2.54387232]
[1760669015794,2.581,3931.2,3930.9,3.17754474]
[1760669016103,2.581,3931.2,3930.7,0.6336]
[1760669016476,0.1001,3931.1,3930.7,0.6336]
[1760669016677,0.62535842,3931.1,3930.5,0.6336]
[1760669016883,0.62535842,3931.1,3930.7,0.6336]
[1760669017202,0.2265,3931.1,3930.7,0.6336]
[1760669017393,0.1264,3931.1,3930.8,2.54394919]
[1760669019179,0.1264,3931.1,3930.7,0.6336]
[1760669020205,0.1264,3931.1,3930.5,0.6336]
[1760669020385,0.1264,3931.1,3930.7,0.6336]
[1760669021503,0.1264,3931.1,3930.4,2.67146903]
[1760669021504,0.1264,3931.1,3930.5,2.54418723]
[1760669021706,0.1264,3931.1,3930.7,3.17761631]
[1760669023725,0.1264,3931.1,3930.5,0.6336]
[1760669023925,0.44703744,3931.1,3930.5,0.6336]
[1760669024121,0.1272,3930.9,3930.4,0.6336]
[1760669024320,2.578,3930.8,3930.6,0.6336]
[1760669024819,2.578,3930.8,3930.4,0.6336]
[1760669025423,2.578,3930.8,3930.4,3.17782848]
[1760669025716,0.1272,3930.9,3930.4,3.17782848]
[1760669026040,2.578,3930.7,3930.4,3.17782848]
[1760669026529,0.39887443,3931.3,3931.1,4.90541725]
[1760669026713,2.536369,3934.1,3931.5,1.728]
[1760669026914,0.2012,3933.8,3933.0,0.6336]
[1760669027101,0.2012,3933.8,3933.2,0.6336]
[1760669027302,0.2012,3933.8,3933.1,0.2339]
[1760669027622,3.493769,3933.7,3932.7,3.17637345]
[1760669027824,0.45422369,3933.7,3932.9,0.6336]
[1760669028128,0.45422369,3933.7,3932.9,3.17624058]
[1760669028439,0.45422369,3933.7,3932.9,2.5426047]
[1760669028645,0.45422369,3933.7,3933.4,0.6336]
[1760669028803,0.204,3934.2,3933.3,2.54238848]
[1760669028804,2.583,3933.6,3933.3,2.54238848]
[1760669029140,1.571,3933.5,3933.4,0.6336]
[1760669029292,1.571,3933.5,3932.9,2.54261768]
[1760669029293,2.583,3933.5,3933.3,0.6336]
[1760669029495,2.583,3933.5,3933.4,3.17592979]
[1760669029822,2.583,3933.5,3933.4,0.6336]
[1760669030316,2.9453,3933.5,3932.7,3.17632319]
[1760669030502,2.9453,3933.5,3933.0,0.6336]
[1760669031001,2.8413,3933.5,3932.9,0.6336]
[1760669031202,0.104,3933.4,3932.6,0.6336]
[1760669031906,0.104,3933.4,3932.8,0.6336]
[1760669032136,0.29463,3933.3,3932.9,2.54263278]
[1760669032504,0.29463,3933.3,3932.8,0.6336]
[1760669032932,0.29463,3933.3,3932.5,0.6708]
[1760669032933,0.29463,3933.3,3932.6,0.6336]
[1760669033136,0.29463,3933.3,3932.8,0.6336]
[1760669033317,0.29463,3933.3,3932.6,0.6336]
[1760669033515,0.287863,3933.2,3932.6,0.6336]
[1760669034039,0.287863,3933.2,3932.5,0.6336]
[1760669034937,0.287863,3933.2,3932.4,0.6336]
[1760669035136,0.2145,3932.5,3930.9,0.232]
[1760669035336,2.582,3932.4,3931.6,2.54343305]
[1760669035544,0.1051,3932.3,3931.3,0.4369]
[1760669035834,0.1051,3932.3,3931.2,0.2339]
[1760669035835,2.582,3932.4,3931.2,0.2339]
[1760669036037,2.582,3932.4,3931.5,0.6336]
[1760669036240,2.582,3932.4,3931.5,3.17710065]
[1760669036535,0.1264,3931.8,3931.3,0.4369]
[1760669036747,2.582,3931.7,3931.4,0.6336]
[1760669037239,2.582,3931.7,3931.5,3.17715498]
[1760669037755,0.1264,3931.8,3931.5,0.6336]
[1760669037922,2.582,3931.7,3931.3,0.6336]
[1760669038330,2.582,3931.7,3931.6,0.6336]
[1760669038526,2.582,3931.7,3931.4,0.6336]
[1760669038926,2.582,3931.7,3931.3,2.54368609]
[1760669039149,2.582,3931.7,3931.3,2.98058609]
[1760669039835,2.582,3931.7,3931.0,2.54388196]
[1760669039836,2.582,3931.7,3931.2,2.54374628]
[1760669040335,2.582,3931.7,3931.0,2.54388196]
[1760669040336,2.582,3931.7,3931.0,3.17748196]
[1760669040540,2.582,3931.7,3931.0,0.6336]
[1760669040715,2.582,3931.7,3931.0,3.17747999]
[1760669040918,2.582,3931.7,3931.0,0.6336]
[1760669041120,2.582,3931.7,3931.0,3.17746781]
[1760669041349,0.106,3931.6,3930.7,0.6336]
[1760669041730,2.64960474,3931.5,3930.5,0.6336]
[1760669041919,2.64960474,3931.5,3930.7,0.6336]
[1760669042320,0.106,3931.4,3930.7,0.6336]
[1760669042520,0.106,3931.4,3930.8,3.17758876]
[1760669042734,0.106,3931.4,3930.8,0.6336]
[1760669042932,2.581,3931.3,3930.8,0.6336]
[1760669043131,2.581,3931.3,3930.6,0.6336]
[1760669043356,2.581,3931.3,3930.8,3.17760045]
[1760669044324,2.581,3931.3,3930.7,0.6336]
[1760669044730,2.581,3931.3,3930.8,0.6336]
[1760669044947,2.687,3931.3,3930.8,0.6336]
[1760669045568,0.106,3931.2,3930.5,0.6336]
[1760669045876,0.106,3931.1,3930.5,0.6336]
[1760669046185,2.64982789,3931.1,3930.5,0.6336]
[1760669046396,2.64982789,3931.1,3930.1,0.002]
[1760669046397,0.82975727,3931.0,3930.1,0.002]
[1760669046545,0.308,3931.0,3930.1,0.002]
[1760669046741,2.54422509,3930.5,3930.1,0.002]
[1760669046969,2.58,3930.4,3930.1,0.002]
[1760669047277,2.888,3930.4,3930.1,0.002]
[1760669047458,5.43228651,3930.4,3930.1,0.002]
[1760669047660,6.22992331,3930.4,3930.1,0.002]
[1760669047979,3.6856368,3930.4,3930.1,0.002]
[1760669048178,5.43228252,3930.4,3930.1,0.002]
[1760669048381,2.85449025,3930.3,3930.1,0.002]
[1760669048680,0.3101,3930.3,3930.1,0.002]
[1760669048883,0.2111,3930.3,3930.1,0.002]
[1760669049053,0.099,3930.2,3930.1,0.002]
[1760669049850,3.18683794,3930.2,3930.1,0.002]
[1760669050050,0.64243817,3930.2,3930.1,0.002]
[1760669051063,0.54343817,3930.2,3930.1,0.002]
[1760669051666,0.64243817,3930.2,3930.1,0.002]
[1760669051863,3.08783794,3930.2,3930.1,0.002]
[1760669052159,0.54343817,3930.2,3930.1,0.002]
[1760669052948,3.08783794,3930.2,3930.1,0.002]
[1760669054685,15.09084494,3930.2,3930.1,0.002]
[1760669054891,14.70801894,3930.2,3930.1,0.002]
[1760669055098,8.80057494,3930.2,3930.1,0.002]
[1760669055759,9.81556994,3930.2,3930.1,0.002]
[1760669056114,7.23825594,3930.2,3930.1,0.002]
[1760669056668,3.18793794,3930.2,3930.1,0.002]
[1760669057192,0.1272,3930.2,3930.1,3.21366451]
[1760669057583,0.1272,3930.2,3930.1,3.84726451]
[1760669058392,0.309,3931.4,3930.4,2.54424237]
[1760669058596,0.1272,3930.6,3930.5,2.98018528]
[1760669058810,2.54311615,3932.2,3930.5,2.98018528]
[1760669058811,0.1264,3931.1,3930.7,2.54407611]
[1760669058963,2.378,3931.0,3930.4,0.1272]
[1760669059462,0.1272,3930.7,3930.4,0.6336]
[1760669059663,0.1272,3930.7,3930.5,0.436]
[1760669059890,2.58,3930.6,3930.2,0.6336]
[1760669060425,2.58,3930.6,3930.4,0.6336]
[1760669061311,2.58,3930.6,3930.2,0.6336]
[1760669061644,2.58,3930.6,3930.2,3.61626024]
[1760669061928,2.58,3930.6,3930.2,1.0719]
[1760669062695,2.58,3930.6,3930.2,0.6336]
[1760669062895,0.1272,3930.4,3930.1,0.002]
[1760669064832,0.1272,3930.4,3930.1,0.6356]
[1760669065330,0.1272,3930.4,3930.1,0.002]
[1760669065697,0.2295,3930.4,3930.1,0.002]
[1760669066238,0.1272,3930.4,3930.1,0.002]
[1760669066713,0.1023,3930.3,3930.1,0.002]
[1760669066914,2.579,3930.2,3930.1,0.002]
[1760669067108,2.6813,3930.2,3930.1,0.002]
[1760669067526,2.579,3930.2,3930.1,0.002]
[1760669069336,11.93239,3930.2,3930.1,0.002]
[1760669069646,25.8191657,3930.2,3930.1,0.002]
[1760669069810,24.8910587,3930.2,3930.1,0.002]
[1760669070206,15.6833047,3930.2,3930.1,0.002]
[1760669070706,19.1693727,3930.2,3930.1,0.002]
[1760669071743,24.1893797,3930.2,3930.1,0.002]
[1760669071943,11.9371717,3930.2,3930.1,0.002]
[1760669072709,18.7621347,3930.2,3930.1,0.002]
[1760669072909,17.4796347,3930.2,3930.1,0.002]
[1760669073524,17.87865636,3930.2,3930.1,0.002]
[1760669073822,28.06696036,3930.2,3930.1,0.002]
[1760669074424,25.33219936,3930.2,3930.1,0.002]
[1760669074820,23.60868236,3930.2,3930.1,0.002]
[1760669075028,21.45537536,3930.2,3930.1,0.002]
[1760669075423,21.24158136,3930.2,3930.1,0.002]
[1760669075754,19.56417836,3930.2,3930.1,0.002]
[1760669075955,21.24464736,3930.2,3930.1,0.002]
[1760669076454,15.49645236,3930.2,3930.1,0.002]
[1760669077023,19.48327636,3930.2,3930.1,0.002]
[1760669077724,16.23368836,3930.2,3930.1,0.002]
[1760669078051,15.39591336,3930.2,3930.1,0.002]
[1760669079044,22.53261836,3930.2,3930.1,0.002]
[1760669079940,27.06439936,3930.2,3930.1,0.002]
[1760669080437,25.60193536,3930.2,3930.1,0.002]
[1760669081041,26.23855536,3930.2,3930.1,0.002]
[1760669082060,29.75531236,3930.2,3930.1,0.002]
[1760669082864,27.82826036,3930.2,3930.1,0.002]
[1760669083038,7.5161607,3930.2,3930.1,0.002]
[1760669083244,27.2671887,3930.2,3930.1,0.002]
[1760669083567,16.8579737,3930.2,3930.1,0.002]
[1760669083732,14.7710697,3930.2,3930.1,0.002]
[1760669084255,26.1667307,3930.2,3930.1,0.002]
[1760669084842,21.9538047,3930.2,3930.1,0.002]
[1760669085051,20.8666347,3930.2,3930.1,0.002]
[1760669085256,28.4891677,3930.2,3930.1,0.002]
[1760669085858,28.88820825,3930.2,3930.1,0.002]
[1760669086174,37.37141325,3930.2,3930.1,0.002]
[1760669086355,29.70176825,3930.2,3930.1,0.002]
[1760669086929,24.52791925,3930.2,3930.1,0.002]
[1760669087124,19.60379425,3930.2,3930.1,0.002]
[1760669088243,25.85796925,3930.2,3930.1,0.002]
[1760669088950,22.83975525,3930.2,3930.1,0.002]
[1760669089124,25.90311025,3930.2,3930.1,0.002]
[1760669089562,22.57099025,3930.2,3930.1,0.002]
[1760669090271,25.99122825,3930.2,3930.1,0.002]
[1760669090657,25.38682125,3930.2,3930.1,0.002]
[1760669091173,27.42609725,3930.2,3930.1,0.002]
[1760669091365,26.72902025,3930.2,3930.1,0.002]
[1760669092263,25.72107325,3930.2,3930.1,0.002]
[1760669092457,23.36587825,3930.2,3930.1,0.002]
[1760669093240,28.48118025,3930.2,3930.1,0.002]
[1760669093440,24.34424225,3930.2,3930.1,0.002]
[1760669094367,28.22440825,3930.2,3930.1,0.002]
[1760669094533,26.68197825,3930.2,3930.1,0.002]
[1760669094734,26.23989225,3930.2,3930.1,0.002]
[1760669094937,15.01848225,3930.2,3930.1,0.002]
[1760669095131,12.0404417,3930.2,3930.1,0.002]
[1760669095436,13.3537507,3930.2,3930.1,0.002]
[1760669096351,26.6085407,3930.2,3930.1,0.002]
[1760669096567,25.0100207,3930.2,3930.1,0.002]
[1760669096875,25.1123207,3930.2,3930.1,0.002]
[1760669097177,15.3805307,3930.2,3930.1,0.002]
[1760669097378,13.6755697,3930.2,3930.1,0.002]
[1760669097579,10.6348447,3930.2,3930.1,0.6965]
[1760669098086,11.03381721,3930.2,3930.1,0.6965]
[1760669098451,13.11032921,3930.2,3930.1,0.6965]
[1760669098795,10.16346721,3930.2,3930.1,0.6965]
[1760669099152,9.85927121,3930.2,3930.1,0.6965]
[1760669099346,15.388422,3930.2,3930.1,0.6965]
[1760669099660,14.670872,3930.2,3930.1,0.6965]
[1760669100045,2.12697251,3930.2,3930.1,0.6965]
[1760669100256,0.39897251,3930.2,3930.1,0.6965]
[1760669100596,2.578,3930.2,3930.1,0.6965]
[1760669100949,4.67196179,3930.9,3930.1,0.6965]
[1760669101149,2.54386953,3931.1,3930.2,0.4277]
[1760669101400,0.1272,3930.4,3930.2,3.29212863]
[1760669101553,2.578,3930.3,3930.2,3.49802863]
[1760669101760,2.578,3930.3,3930.2,0.95368654]
[1760669102093,2.578,3930.3,3930.2,0.6336]
[1760669102260,2.578,3930.3,3930.2,1.0613]
[1760669102649,2.578,3930.3,3930.2,0.4277]
[1760669104254,2.578,3930.3,3930.1,0.2287]
[1760669104255,10.23688103,3930.3,3930.1,0.2287]
[1760669104455,5.12233503,3930.3,3930.1,0.6564]
[1760669104655,5.12233503,3930.3,3930.2,0.4277]
[1760669104878,9.50831403,3930.3,3930.2,0.4277]
[1760669105286,6.963979,3930.3,3930.2,0.4277]
[1760669105855,2.67159977,3930.2,3930.1,0.2287]
[1760669106062,0.1272,3930.2,3930.1,0.2287]
[1760669106889,0.1272,3930.2,3930.1,1.69907]
[1760669107058,2.7052,3930.2,3930.1,1.69907]
[1760669107254,2.7052,3930.2,3930.1,4.24353451]
[1760669107454,4.67296179,3931.3,3930.3,3.17792928]
[1760669107455,0.1272,3930.7,3930.3,3.17792928]
[1760669107656,0.001,3931.3,3930.7,0.6336]
[1760669107863,0.001,3931.3,3931.2,0.2138]
[1760669108096,2.579,3931.3,3931.2,0.2138]
[1760669108300,0.001,3931.3,3931.2,1.2751]
[1760669108591,0.164,3931.3,3931.2,3.94636254]
[1760669108901,2.579,3931.3,3931.2,3.94636254]
[1760669109200,0.001,3931.3,3931.2,3.94636254]
[1760669110383,0.001,3931.3,3931.2,8.61832433]
[1760669111062,0.001,3931.3,3931.2,3.94636254]
[1760669111871,0.001,3931.3,3931.2,1.2751]
[1760669113890,0.001,3931.3,3931.2,3.81885254]
[1760669115798,0.001,3931.3,3931.2,10.24425185]
[1760669116099,0.1992,3933.9,3931.2,10.24425185]
[1760669116100,0.381,3933.0,3932.0,3.17683499]
[1760669116306,0.381,3933.0,3932.9,3.176253]
[1760669116601,0.381,3933.0,3932.9,3.603953]
[1760669117500,0.381,3933.0,3932.9,4.7071991]
[1760669118003,2.185729,3934.2,3933.5,2.54224555]
[1760669118215,2.185729,3934.2,3933.5,0.6336]
[1760669118371,2.577,3934.1,3932.9,3.176253]
[1760669118564,2.577,3934.1,3933.7,0.6336]
[1760669118764,3.08887004,3934.1,3933.7,1.0613]
[1760669118968,3.08887004,3934.1,3933.7,0.6336]
[1760669119186,0.1264,3933.9,3933.7,1.0613]
[1760669119409,2.7034,3933.9,3933.8,3.60337127]
[1760669119577,0.39853449,3935.0,3933.9,0.6336]
[1760669119780,0.2007,3934.8,3934.1,2.54187093]
[1760669120010,0.2007,3934.8,3934.3,0.6336]
[1760669120011,0.32772345,3934.7,3934.3,0.6336]
[1760669120741,0.32772345,3934.7,3934.4,0.4277]
[1760669120903,2.576,3934.6,3934.5,0.6336]
[1760669121947,2.576,3934.6,3934.3,0.6336]
[1760669123107,2.576,3934.6,3934.3,1.0654]
[1760669123703,2.576,3934.6,3934.4,0.4318]
[1760669123911,0.39848036,3934.9,3934.5,1.0654]
[1760669124140,1.796,3934.8,3934.7,0.6336]
[1760669124469,1.796,3934.8,3934.3,0.6336]
[1760669125011,1.796,3934.8,3934.3,1.0654]
[1760669125618,1.796,3934.8,3934.5,0.6336]
[1760669125942,1.796,3934.8,3934.6,0.4318]
[1760669126144,1.796,3934.8,3934.2,0.2138]
[1760669126145,1.796,3934.8,3934.3,0.6336]
[1760669126547,1.796,3934.8,3934.5,0.6336]
[1760669126849,1.796,3934.8,3934.7,0.6336]
[1760669127140,1.796,3934.8,3934.7,3.60688982]
[1760669128419,1.796,3934.8,3934.7,1.0654]
[1760669128619,1.796,3934.8,3934.5,0.6336]
[1760669128825,1.796,3934.8,3934.5,3.17520713]
[1760669129024,1.796,3934.8,3934.7,0.6336]
[1760669129725,1.796,3934.8,3934.7,1.0654]
[1760669131344,1.796,3934.8,3934.7,0.6336]
[1760669131734,1.896,3934.8,3934.7,0.6336]
[1760669132052,1.796,3934.8,3934.7,0.6336]
[1760669132821,1.796,3934.8,3934.4,0.6336]
[1760669133423,0.2987,3934.7,3933.1,0.6585]
[1760669133746,2.02808435,3934.8,3933.2,0.2267]
[1760669133747,0.1264,3933.8,3933.2,0.2267]
[1760669133944,0.1264,3933.8,3933.2,0.6585]
[1760669134148,2.575,3933.7,3933.3,0.6336]
[1760669134559,2.8713,3933.7,3933.1,0.1264]
[1760669134728,2.8713,3933.7,3932.9,2.54263379]
[1760669134729,0.1264,3933.4,3932.9,2.54263379]
[1760669135091,0.1264,3933.4,3932.8,0.3402]
[1760669135261,0.2098,3932.9,3932.0,0.2138]
[1760669135437,0.3985967,3933.6,3932.1,14.60057123]
[1760669135762,2.433,3933.5,3932.9,2.54264556]
[1760669135923,2.433,3933.5,3933.0,0.6336]
[1760669136123,2.64242979,3933.4,3932.2,2.76979526]
[1760669136324,0.1985,3934.0,3932.3,0.4572304]
[1760669136541,0.1985,3934.0,3933.0,2.54258447]
[1760669136862,2.575,3933.9,3933.2,0.6336]
[1760669137156,5.11701538,3933.9,3932.9,0.6336]
[1760669137462,2.575,3933.9,3933.3,0.6336]
[1760669137659,2.575,3933.9,3933.3,1.09082394]
[1760669137865,2.575,3933.9,3933.3,1.0654]
[1760669138554,2.575,3933.9,3933.3,3.60776977]
[1760669138754,2.575,3933.9,3933.2,0.6336]
[1760669139192,2.575,3933.9,3933.1,0.6336]
[1760669139375,2.575,3933.9,3933.0,0.6336]
[1760669139545,2.575,3933.9,3933.3,0.6336]
[1760669140283,2.575,3933.9,3933.2,0.6336]
[1760669140483,5.11706132,3933.9,3933.2,0.6336]
[1760669140656,2.54214647,3933.7,3933.1,0.6336]
[1760669140978,2.54214647,3933.7,3932.7,0.6336]
[1760669141182,2.54214647,3933.7,3932.8,2.90353177]
[1760669141345,2.54214647,3933.7,3933.0,0.6336]
[1760669141775,2.54214647,3933.7,3932.8,2.54266133]
[1760669141943,2.54214647,3933.7,3933.0,0.6336]
[1760669142142,0.099,3933.6,3932.5,0.4318]
[1760669142349,0.099,3933.6,3932.9,0.6336]
[1760669142647,0.099,3933.6,3933.1,0.6336]
[1760669144070,0.1996,3933.8,3933.1,2.54251595]
[1760669144258,0.1996,3933.8,3933.1,2.76921595]
[1760669144456,2.74167149,3933.8,3933.1,0.8603]
[1760669144782,2.54215352,3933.7,3933.0,0.6336]
[1760669145381,0.1264,3933.3,3933.1,0.6336]
[1760669145576,2.575,3933.2,3933.1,2.5425237]
[1760669145743,2.575,3933.2,3933.1,3.8346237]
[1760669145950,2.575,3933.2,3933.1,4.47235066]
[1760669146282,2.575,3934.0,3933.9,0.6336]
[1760669146869,2.575,3934.0,3933.8,0.6336]
[1760669147070,2.7014,3934.0,3933.8,0.6336]
[1760669147265,2.7014,3934.0,3933.5,0.6336]
[1760669147464,2.7014,3934.0,3933.7,0.6336]
[1760669147796,2.7014,3934.0,3933.9,3.17560666]
[1760669148096,2.575,3934.0,3933.9,3.60740666]
[1760669148597,2.575,3934.0,3933.9,0.6336]
[1760669149775,2.575,3934.0,3933.2,0.6336]
[1760669150115,2.575,3934.0,3933.1,0.6585]
[1760669150116,2.575,3934.0,3933.7,0.6336]
[1760669150401,2.575,3934.0,3933.5,0.6336]
[1760669150601,2.575,3934.0,3933.8,0.6336]
[1760669150905,2.575,3934.0,3933.9,3.17560666]
[1760669151101,0.1264,3934.3,3934.0,0.6336]
[1760669151276,0.001,3934.7,3934.3,0.6336]
[1760669151478,2.576,3934.6,3934.5,0.6336]
[1760669151800,2.576,3934.6,3934.5,3.17521901]
[1760669152100,2.576,3934.6,3933.9,0.1264]
[1760669152399,2.576,3934.6,3933.8,0.6336]
[1760669152598,2.576,3934.6,3934.0,0.6336]
[1760669153380,2.576,3934.6,3934.0,3.17553387]
[1760669153800,2.576,3934.6,3934.0,0.6336]
[1760669154022,5.11761772,3934.6,3934.0,0.6336]
[1760669154222,5.21761772,3934.6,3933.9,0.6336]
[1760669154728,2.676,3934.6,3934.0,0.6336]
[1760669154929,2.676,3934.6,3933.4,0.6336]
[1760669155226,2.676,3934.6,3934.1,0.6336]
[1760669155395,0.1,3934.5,3934.0,0.6336]
[1760669155822,0.1,3934.5,3933.7,3.17567335]
[1760669156124,0.1,3934.5,3933.7,0.6336]
[1760669156538,0.1,3934.5,3933.9,0.6336]
[1760669156999,0.1,3934.5,3934.0,0.6336]
[1760669158998,0.1,3934.5,3934.2,0.6336]
[1760669160032,3.09884927,3934.6,3934.1,0.6336]
[1760669160442,3.19884927,3934.6,3934.1,3.17546771]
[1760669160599,2.677,3934.6,3934.1,3.17546771]
[1760669160934,2.677,3934.6,3934.1,0.6336]
[1760669161138,0.1,3934.5,3933.4,2.54232979]
[1760669161319,2.64162342,3934.5,3933.8,0.6336]
[1760669162134,0.1264,3934.2,3933.8,3.17566938]
[1760669162434,0.1264,3933.9,3933.6,0.6336]
[1760669162737,0.1264,3933.9,3933.7,0.6336]
[1760669162738,2.575,3933.8,3933.7,0.6336]
[1760669163111,2.9735351,3933.8,3933.6,0.6336]
[1760669163497,2.9735351,3933.8,3933.7,0.6336]
[1760669164403,2.9735351,3933.8,3933.6,0.6336]
[1760669165831,2.9735351,3933.8,3933.5,2.5422139]
[1760669165832,2.9735351,3933.8,3933.7,3.1757359]
[1760669166025,2.9735351,3933.8,3933.7,0.6336]
[1760669166926,2.9735351,3933.8,3933.4,0.6336]
[1760669167100,3.0745351,3933.8,3933.4,0.6336]
[1760669167301,0.101,3933.7,3933.2,0.6336]
[1760669167510,0.1264,3933.5,3932.9,2.66903229]
[1760669167800,2.575,3933.4,3933.3,3.17598614]
[1760669168223,0.1264,3933.5,3933.3,3.17598614]
[1760669168535,0.1264,3933.5,3933.1,2.77798276]
[1760669168536,0.5249351,3933.8,3933.7,3.1757359]
[1760669168738,1.7469351,3933.8,3933.7,3.1757359]
[1760669168904,1.7469351,3933.8,3933.7,0.6336]
[1760669169105,1.7469351,3933.8,3933.7,3.1757359]
[1760669170238,1.7469351,3933.8,3933.7,0.6336]
[1760669171420,1.7469351,3933.8,3933.2,0.5551]
[1760669171621,1.7469351,3933.8,3932.8,5.59452044]
[1760669171622,1.6205351,3933.8,3933.3,0.6336]
[1760669171840,0.1,3933.7,3933.3,0.6336]
[1760669172135,0.1,3933.6,3932.8,1.0623]